fUST/lending_fUST_20240728
["ID","MTS","AMOUNT","RATE_DAILY","PERIOD"]
[333467025,1722161455854,-2553.45,0.00013698,2]
[333467026,1722161455863,-2553.45,0.00013698,2]
[333467027,1722161455872,-2553.45,0.00013698,2]
[333467028,1722161455882,-2553.45,0.00013698,2]
[333467029,1722161455891,-2553.45,0.00013698,2]
[333467030,1722161455900,-2553.45,0.00013698,2]
[333467031,1722161455910,-2553.45,0.00013698,2]
[333467032,1722161455919,-500.0,0.00013698,2]
[333467033,1722161455929,-2553.45,0.00013698,2]
[333467034,1722161455938,-2553.45,0.00013698,2]
[333467035,1722161455947,-2553.45,0.00013698,2]
[333467036,1722161455962,-2553.60987027,0.00013698,2]
[333467037,1722161455971,-500.0,0.00013698,2]
[333467038,1722161455980,-641.92796995,0.00013698,2]
[333467039,1722161455991,-839.66,0.00013698,2]
[333467040,1722161456001,-500.0,0.00013698,2]
[333467041,1722161456012,-732.77,0.00013698,2]
[333467042,1722161456021,-500.0,0.00013698,2]
[333467043,1722161456031,-500.0,0.00013698,2]
[333467044,1722161456041,-500.0,0.00013698,2]
[333467045,1722161456051,-160.038945,0.00013698,2]
[333467046,1722161456060,-503.37099468,0.00013698,2]
[333467047,1722161456069,-160.038945,0.00013698,2]
[333467048,1722161456079,-500.0,0.00013698,2]
[333467049,1722161456089,-160.038945,0.00013698,2]
[333467050,1722161456100,-160.038945,0.00013698,2]
[333467051,1722161456111,-160.038945,0.00013698,2]
[333467052,1722161456124,-160.038945,0.00013698,2]
[333467053,1722161456135,-160.038945,0.00013698,2]
[333467054,1722161456144,-223.92532838,0.00013698,2]
[333467055,1722161456154,-500.0,0.00013698,2]
[333467056,1722161456167,-500.0,0.00013698,2]
[333467057,1722161456176,-544.19824642,0.00013698,2]
[333467058,1722161456185,-256.40577555,0.00013698,2]
[333467059,1722161456195,-346.15456813,0.00013698,2]
[333467060,1722161456205,-500.0,0.00013698,2]
[333467061,1722161456214,-500.0,0.00013698,2]
[333467062,1722161456223,-500.0,0.00013698,2]
[333467063,1722161456233,-292.60929837,0.00013698,2]
[333467064,1722161456242,-500.0,0.00013698,2]
[333467065,1722161456252,-500.0,0.00013698,2]
[333467066,1722161456261,-305.065166,0.00013698,2]
[333467067,1722161456271,-160.038945,0.00013698,2]
[333467068,1722161456281,-500.0,0.00013698,2]
[333467069,1722161456290,-305.065166,0.00013698,2]
[333467070,1722161456300,-160.038945,0.00013698,2]
[333467071,1722161456309,-305.065166,0.00013698,2]
[333467072,1722161456318,-500.0,0.00013698,2]
[333467073,1722161456328,-305.065166,0.00013698,2]
[333467074,1722161456338,-160.038945,0.00013698,2]
[333467075,1722161456347,-305.065166,0.00013698,2]
[333467076,1722161456356,-2141.1,0.00013698,2]
[333467077,1722161456365,-160.038945,0.00013698,2]
[333467078,1722161456374,-160.038945,0.00013698,2]
[333467079,1722161456383,-160.038945,0.00013698,2]
[333467080,1722161456393,-305.065166,0.00013698,2]
[333467081,1722161456402,-500.0,0.00013698,2]
[333467082,1722161456411,-160.038945,0.00013698,2]
[333467083,1722161456420,-183.18334825,0.00013698,2]
[333467084,1722161456430,-500.0,0.00013698,2]
[333467085,1722161456440,-305.065166,0.00013698,2]
[333467086,1722161456450,-160.038945,0.00013698,2]
[333467087,1722161456540,-305.065166,0.00013698,2]
[333467088,1722161456550,-160.038945,0.00013698,2]
[333467089,1722161456560,-160.038945,0.00013698,2]
[333467090,1722161456570,-160.038949,0.00013698,2]
[333467091,1722161456579,-305.065166,0.00013698,2]
[333467092,1722161456588,-501.09450704,0.00013698,2]
[333467093,1722161456599,-305.065166,0.00013698,2]
[333467094,1722161456610,-305.065166,0.00013698,2]
[333467095,1722161456622,-305.065166,0.00013698,2]
[333467096,1722161456632,-305.065166,0.00013698,2]
[333467097,1722161456643,-305.065166,0.00013698,2]
[333467098,1722161456654,-2157.11,0.00013698,2]
[333467099,1722161456665,-305.065166,0.00013698,2]
[333467100,1722161456675,-305.065171,0.00013698,2]
[333467101,1722161456684,-500.0,0.00013698,2]
[333467102,1722161456693,-500.0,0.00013698,2]
[333467103,1722161456702,-227.79945734,0.00013698,2]
[333467104,1722161456711,-500.0,0.00013698,2]
[333467105,1722161456721,-500.0,0.00013698,2]
[333467106,1722161456730,-151.0,0.00013698,2]
[333467107,1722161456741,-500.0,0.00013698,2]
[333467108,1722161456750,-807.06,0.00013698,2]
[333467109,1722161456760,-807.06,0.00013698,2]
[333467110,1722161456770,-500.0,0.00013698,2]
[333467111,1722161456779,-807.06,0.00013698,2]
[333467112,1722161456789,-807.06,0.00013698,2]
[333467113,1722161456798,-807.06,0.00013698,2]
[333467114,1722161456807,-807.06,0.00013698,2]
[333467115,1722161456816,-151.008404,0.00013699,2]
[333467116,1722161456826,-3000.0,0.00013699,2]
[333467117,1722161456835,-191.990136,0.00013699,2]
[333467118,1722161456844,-151.0,0.00013699,2]
[333467119,1722161456853,-151.0,0.00013699,2]
[333467120,1722161456862,-151.0,0.00013699,2]
[333467121,1722161456872,-152.619624,0.00013699,2]
[333467122,1722161456881,-355.0,0.00013699,2]
[333467123,1722161456890,-194.46725522,0.00013699,2]
[333467124,1722161456900,-150.112233,0.000137,2]
[333467125,1722161456910,-150.112233,0.000137,2]
[333467126,1722161456919,-150.112233,0.000137,2]
[333467127,1722161456929,-150.112233,0.000137,2]
[333467128,1722161456938,-150.112233,0.000137,2]
[333467129,1722161456947,-150.112233,0.000137,2]
[333467130,1722161456960,-150.112233,0.000137,2]
[333467131,1722161456969,-150.112233,0.000137,2]
[333467132,1722161456979,-150.112233,0.000137,2]
[333467133,1722161456988,-150.112233,0.000137,2]
[333467134,1722161456998,-150.112233,0.000137,2]
[333467135,1722161457007,-150.112233,0.000137,2]
[333467136,1722161457016,-150.112233,0.000137,2]
[333467137,1722161457025,-150.112233,0.000137,2]
[333467138,1722161457035,-150.112233,0.000137,2]
[333467139,1722161457044,-293.9641968,0.00013781,2]
[333467140,1722161457054,-150.112233,0.000138,2]
[333467141,1722161457063,-150.112233,0.000138,2]
[333467142,1722161457073,-200.0,0.00013829,2]
[333467143,1722161457082,-1201.97282082,0.000139,2]
[333467144,1722161457091,-150.112233,0.000139,2]
[333467145,1722161457100,-1409.0,0.0001393,2]
[333467146,1722161457109,-300.0,0.00013931,2]
[333467147,1722161457119,-300.0,0.00013952,2]
[333467148,1722161457128,-1000.0,0.00013955,2]
[333467149,1722161457137,-1082.07943119,0.00013959,2]
[333467150,1722161457146,-300.0,0.00013963,2]
[333467151,1722161457156,-1000.0,0.00013968,2]
[333467152,1722161457166,-597.72529334,0.00013972,2]
[333467153,1722161457175,-500.0,0.00013972,2]
[333467154,1722161457184,-500.0,0.00013972,2]
[333467155,1722161457193,-504.19036486,0.00013972,2]
[333467156,1722161457203,-500.0,0.00013972,2]
[333467157,1722161457212,-500.0,0.00013972,2]
[333467158,1722161457221,-500.0,0.00013972,2]
[333467159,1722161457232,-500.0,0.00013972,2]
[333467160,1722161457242,-500.0,0.00013972,2]
[333467161,1722161457252,-500.0,0.00013972,2]
[333467162,1722161457261,-500.0,0.00013972,2]
[333467163,1722161457271,-192.62994465,0.00013972,2]
[333467164,1722161457280,-500.0,0.00013972,2]
[333467165,1722161457289,-500.0,0.00013972,2]
[333467166,1722161457299,-500.0,0.00013972,2]
[333467167,1722161457308,-500.0,0.00013972,2]
[333467168,1722161457317,-500.0,0.00013972,2]
[333467169,1722161457326,-500.0,0.00013972,2]
[333467170,1722161457336,-500.0,0.00013972,2]
[333467171,1722161457346,-470.01058235,0.00013972,2]
[333467172,1722161457355,-500.0,0.00013972,2]
[333467173,1722161457364,-500.0,0.00013972,2]
[333467174,1722161457373,-500.0,0.00013972,2]
[333467175,1722161457383,-500.0,0.00013972,2]
[333467176,1722161457393,-500.0,0.00013972,2]
[333467177,1722161457402,-516.89597913,0.00013972,2]
[333467178,1722161457412,-500.0,0.00013972,2]
[333467179,1722161457421,-500.0,0.00013972,2]
[333467180,1722161457430,-500.0,0.00013972,2]
[333467181,1722161457439,-500.0,0.00013972,2]
[333467182,1722161457450,-500.0,0.00013972,2]
[333467183,1722161457459,-500.0,0.00013972,2]
[333467184,1722161457468,-502.19608893,0.00013972,2]
[333467185,1722161457478,-630.97,0.00013972,2]
[333467186,1722161457489,-500.0,0.00013972,2]
[333467187,1722161457498,-500.0,0.00013972,2]
[333467188,1722161457507,-500.0,0.00013972,2]
[333467189,1722161457517,-500.0,0.00013972,2]
[333467190,1722161457526,-500.0,0.00013972,2]
[333467191,1722161457536,-500.0,0.00013972,2]
[333467192,1722161457545,-500.0,0.00013972,2]
[333467193,1722161457554,-500.0,0.00013972,2]
[333467194,1722161457564,-500.0,0.00013972,2]
[333467195,1722161457573,-500.0,0.00013972,2]
[333467196,1722161457582,-500.0,0.00013972,2]
[333467197,1722161457591,-500.0,0.00013972,2]
[333467198,1722161457601,-507.28872392,0.00013972,2]
[333467199,1722161457610,-500.0,0.00013972,2]
[333467200,1722161457620,-479.77942946,0.00013972,2]
[333467201,1722161457629,-500.0,0.00013972,2]
[333467202,1722161457638,-398.68164854,0.00013972,2]
[333467203,1722161457647,-500.0,0.00013972,2]
[333467204,1722161457657,-500.0,0.00013972,2]
[333467205,1722161457666,-500.0,0.00013972,2]
[333467206,1722161457675,-500.0,0.00013972,2]
[333467207,1722161457684,-500.0,0.00013972,2]
[333467208,1722161457693,-500.0,0.00013972,2]
[333467209,1722161457703,-500.0,0.00013972,2]
[333467210,1722161457712,-500.0,0.00013972,2]
[333467211,1722161457723,-500.0,0.00013972,2]
[333467212,1722161457732,-500.0,0.00013972,2]
[333467213,1722161457742,-500.0,0.00013972,2]
[333467214,1722161457751,-500.0,0.00013972,2]
[333467215,1722161457766,-500.0,0.00013972,2]
[333467216,1722161457775,-500.0,0.00013972,2]
[333467217,1722161457784,-500.0,0.00013972,2]
[333467218,1722161457793,-500.0,0.00013972,2]
[333467219,1722161457803,-506.19503965,0.00013972,2]
[333467220,1722161457812,-500.0,0.00013972,2]
[333467221,1722161457821,-500.0,0.00013972,2]
[333467222,1722161457830,-500.0,0.00013972,2]
[333467223,1722161457839,-500.0,0.00013972,2]
[333467224,1722161457848,-505.76600272,0.00013972,2]
[333467225,1722161457857,-500.0,0.00013972,2]
[333467226,1722161457867,-500.0,0.00013972,2]
[333467227,1722161457876,-500.0,0.00013972,2]
[333467228,1722161457885,-500.0,0.00013972,2]
[333467229,1722161457894,-500.0,0.00013972,2]
[333467230,1722161457905,-500.0,0.00013972,2]
[333467231,1722161457913,-500.0,0.00013972,2]
[333467232,1722161457922,-655.16,0.00013972,2]
[333467233,1722161457932,-500.0,0.00013972,2]
[333467234,1722161457941,-500.0,0.00013972,2]
[333467235,1722161457951,-500.0,0.00013972,2]
[333467236,1722161457964,-500.0,0.00013972,2]
[333467237,1722161457973,-500.0,0.00013972,2]
[333467238,1722161457982,-497.00695955,0.00013972,2]
[333467239,1722161457992,-500.0,0.00013972,2]
[333467240,1722161458003,-500.0,0.00013972,2]
[333467241,1722161458014,-500.0,0.00013972,2]
[333467242,1722161458024,-500.0,0.00013972,2]
[333467243,1722161458037,-500.0,0.00013972,2]
[333467244,1722161458048,-500.0,0.00013972,2]
[333467245,1722161458060,-398.86574117,0.00013972,2]
[333467246,1722161458069,-500.0,0.00013972,2]
[333467247,1722161458080,-510.8010597,0.00013972,2]
[333467248,1722161458091,-500.0,0.00013972,2]
[333467249,1722161458102,-500.0,0.00013972,2]
[333467250,1722161458113,-500.0,0.00013972,2]
[333467251,1722161458124,-546.88,0.00013972,2]
[333467252,1722161458135,-500.0,0.00013972,2]
[333467253,1722161458146,-574.26793223,0.00013972,2]
[333467254,1722161458157,-547.72305353,0.00013972,2]
[333467255,1722161458168,-507.57712413,0.00013972,2]
[333467256,1722161458177,-500.0,0.00013972,2]
[333467257,1722161458186,-500.0,0.00013972,2]
[333467258,1722161458196,-500.0,0.00013972,2]
[333467259,1722161458206,-500.0,0.00013972,2]
[333467260,1722161458215,-500.0,0.00013972,2]
[333467261,1722161458224,-502.8165754,0.00013972,2]
[333467262,1722161458233,-500.0,0.00013972,2]
[333467263,1722161458243,-500.0,0.00013972,2]
[333467264,1722161458253,-500.0,0.00013972,2]
[333467265,1722161458337,-1000.0,0.00013972,2]
[333467266,1722161458348,-502.23350402,0.00013972,2]
[333467267,1722161458359,-500.0,0.00013972,2]
[333467268,1722161458369,-500.0,0.00013972,2]
[333467269,1722161458379,-500.0,0.00013972,2]
[333467270,1722161458388,-500.0,0.00013972,2]
[333467271,1722161458397,-500.0,0.00013972,2]
[333467272,1722161458407,-500.0,0.00013972,2]
[333467273,1722161458419,-500.0,0.00013972,2]
[333467274,1722161458430,-624.92435556,0.00013972,2]
[333467275,1722161458441,-500.0,0.00013972,2]
[333467276,1722161458451,-687.74,0.00013972,2]
[333467277,1722161458461,-500.0,0.00013972,2]
[333467278,1722161458470,-500.0,0.00013972,2]
[333467279,1722161458480,-500.0,0.00013972,2]
[333467280,1722161458489,-500.0,0.00013972,2]
[333467281,1722161458498,-500.0,0.00013972,2]
[333467282,1722161458508,-500.0,0.00013972,2]
[333467283,1722161458517,-506.36627106,0.00013972,2]
[333467284,1722161458527,-680.93,0.00013972,2]
[333467285,1722161458536,-500.0,0.00013972,2]
[333467286,1722161458546,-507.66272438,0.00013972,2]
[333467287,1722161458555,-500.0,0.00013972,2]
[333467288,1722161458564,-500.0,0.00013972,2]
[333467289,1722161458574,-500.0,0.00013972,2]
[333467290,1722161458583,-506.10749249,0.00013972,2]
[333467291,1722161458592,-504.52740706,0.00013972,2]
[333467292,1722161458602,-500.0,0.00013972,2]
[333467293,1722161458612,-500.0,0.00013972,2]
[333467294,1722161458621,-500.0,0.00013972,2]
[333467295,1722161458631,-500.0,0.00013972,2]
[333467296,1722161458640,-500.0,0.00013972,2]
[333467297,1722161458649,-500.0,0.00013972,2]
[333467298,1722161458658,-500.0,0.00013972,2]
[333467299,1722161458668,-500.0,0.00013972,2]
[333467300,1722161458677,-500.0,0.00013972,2]
[333467301,1722161458686,-519.42702461,0.00013972,2]
[333467302,1722161458695,-500.0,0.00013972,2]
[333467303,1722161458705,-502.26286959,0.00013972,2]
[333467304,1722161458715,-502.47383564,0.00013972,2]
[333467305,1722161458725,-505.69652042,0.00013972,2]
[333467306,1722161458734,-508.25558177,0.00013972,2]
[333467307,1722161458744,-500.0,0.00013972,2]
[333467308,1722161458753,-1024.29,0.00013972,2]
[333467309,1722161458763,-891.22,0.00013972,2]
[333467310,1722161458772,-500.0,0.00013972,2]
[333467311,1722161458781,-1195.03,0.00013972,2]
[333467312,1722161458791,-500.0,0.00013972,2]
[333467313,1722161458800,-500.0,0.00013972,2]
[333467314,1722161458810,-500.0,0.00013972,2]
[333467315,1722161458819,-780.89,0.00013972,2]
[333467316,1722161458829,-3559.96,0.00013972,2]
[333467317,1722161458838,-500.0,0.00013972,2]
[333467318,1722161458847,-500.0,0.00013972,2]
[333467319,1722161458856,-500.0,0.00013972,2]
[333467320,1722161458866,-1630.79,0.00013972,2]
[333467321,1722161458875,-500.0,0.00013972,2]
[333467322,1722161458889,-500.0,0.00013972,2]
[333467323,1722161458899,-500.0,0.00013972,2]
[333467324,1722161458908,-500.0,0.00013972,2]
[333467325,1722161458918,-500.0,0.00013972,2]
[333467326,1722161458927,-500.0,0.00013972,2]
[333467327,1722161458936,-825.27,0.00013972,2]
[333467328,1722161458945,-320.28289369,0.00013972,2]
[333467329,1722161458956,-500.0,0.00013972,2]
[333467330,1722161458966,-500.0,0.00013972,2]
[333467331,1722161458975,-500.0,0.00013972,2]
[333467332,1722161458985,-500.0,0.00013972,2]
[333467333,1722161458996,-5430.25,0.00013972,2]
[333467334,1722161459005,-500.0,0.00013972,2]
[333467335,1722161459018,-500.0,0.00013972,2]
[333467336,1722161459027,-500.0,0.00013972,2]
[333467337,1722161459036,-500.0,0.00013972,2]
[333467338,1722161459046,-500.0,0.00013972,2]
[333467339,1722161459055,-500.0,0.00013972,2]
[333467340,1722161459065,-2393.93,0.00013972,2]
[333467341,1722161459074,-635.2,0.00013972,2]
[333467342,1722161459083,-500.0,0.00013972,2]
[333467343,1722161459093,-500.0,0.00013972,2]
[333467344,1722161459103,-500.0,0.00013972,2]
[333467345,1722161459115,-1723.84,0.00013972,2]
[333467346,1722161459125,-500.0,0.00013972,2]
[333467347,1722161459136,-939.58,0.00013972,2]
[333467348,1722161459147,-500.0,0.00013972,2]
[333467349,1722161459156,-500.0,0.00013972,2]
[333467350,1722161459166,-431.82084717,0.00013972,2]
[333467351,1722161459175,-500.0,0.00013972,2]
[333467352,1722161459185,-500.0,0.00013972,2]
[333467353,1722161459194,-500.0,0.00013972,2]
[333467354,1722161459204,-590.1,0.00013972,2]
[333467355,1722161459213,-500.0,0.00013972,2]
[333467356,1722161459223,-500.0,0.00013972,2]
[333467357,1722161459233,-500.0,0.00013972,2]
[333467358,1722161459243,-927.23,0.00013972,2]
[333467359,1722161459253,-806.71,0.00013972,2]
[333467360,1722161459262,-500.0,0.00013972,2]
[333467361,1722161459272,-1272.72,0.00013972,2]
[333467362,1722161459281,-500.0,0.00013972,2]
[333467363,1722161459291,-500.0,0.00013972,2]
[333467364,1722161459302,-500.0,0.00013972,2]
[333467365,1722161459313,-500.0,0.00013972,2]
[333467366,1722161459323,-1069.62,0.00013972,2]
[333467367,1722161459333,-500.0,0.00013972,2]
[333467368,1722161459343,-500.0,0.00013972,2]
[333467369,1722161459352,-500.0,0.00013972,2]
[333467370,1722161459362,-500.0,0.00013972,2]
[333467371,1722161459372,-704.35,0.00013972,2]
[333467372,1722161459382,-504.27162408,0.00013972,2]
[333467373,1722161459392,-500.0,0.00013972,2]
[333467374,1722161459405,-500.0,0.00013972,2]
[333467375,1722161459416,-3196.63,0.00013972,2]
[333467376,1722161459426,-1642.51,0.00013972,2]
[333467377,1722161459437,-500.0,0.00013972,2]
[333467378,1722161459446,-5871.47,0.00013972,2]
[333467379,1722161459458,-772.76,0.00013972,2]
[333467380,1722161459468,-505.97444456,0.00013972,2]
[333467381,1722161459477,-785.55,0.00013972,2]
[333467382,1722161459486,-500.0,0.00013972,2]
[333467383,1722161459500,-500.0,0.00013972,2]
[333467384,1722161459510,-845.57,0.00013972,2]
[333467385,1722161459520,-500.0,0.00013972,2]
[333467386,1722161459529,-500.0,0.00013972,2]
[333467387,1722161459538,-500.0,0.00013972,2]
[333467388,1722161459547,-894.82,0.00013972,2]
[333467389,1722161459556,-500.0,0.00013972,2]
[333467390,1722161459565,-500.0,0.00013972,2]
[333467391,1722161459574,-500.0,0.00013972,2]
[333467392,1722161459583,-880.38,0.00013972,2]
[333467393,1722161459593,-500.0,0.00013972,2]
[333467394,1722161459602,-500.0,0.00013972,2]
[333467395,1722161459611,-500.0,0.00013972,2]
[333467396,1722161459621,-526.98226081,0.00013972,2]
[333467397,1722161459632,-500.0,0.00013972,2]
[333467398,1722161459641,-694.29,0.00013972,2]
[333467399,1722161459651,-706.94,0.00013972,2]
[333467400,1722161459660,-500.0,0.00013972,2]
[333467401,1722161459669,-500.0,0.00013972,2]
[333467402,1722161459678,-500.0,0.00013972,2]
[333467403,1722161459687,-500.0,0.00013972,2]
[333467404,1722161459696,-500.0,0.00013972,2]
[333467405,1722161459705,-500.0,0.00013972,2]
[333467406,1722161459714,-500.0,0.00013972,2]
[333467407,1722161459723,-720.7,0.00013972,2]
[333467408,1722161459733,-500.0,0.00013972,2]
[333467409,1722161459744,-500.0,0.00013972,2]
[333467410,1722161459753,-1297.08,0.00013972,2]
[333467411,1722161459763,-569.0,0.00013972,2]
[333467412,1722161459772,-500.0,0.00013972,2]
[333467413,1722161459781,-839.66,0.00013972,2]
[333467414,1722161459790,-500.0,0.00013972,2]
[333467415,1722161459801,-732.77,0.00013972,2]
[333467416,1722161459810,-500.0,0.00013972,2]
[333467417,1722161459820,-2141.1,0.00013972,2]
[333467418,1722161459829,-500.0,0.00013972,2]
[333467419,1722161459838,-2157.11,0.00013972,2]
[333467420,1722161459848,-510.5,0.00013972,2]
[333467421,1722161459858,-500.0,0.00013972,2]
[333467422,1722161459867,-500.0,0.00013972,2]
[333467423,1722161459876,-500.0,0.00013972,2]
[333467424,1722161459885,-321.40289914,0.00013973,2]
[333467425,1722161459895,-1000.0,0.00013974,2]
[333467426,1722161459905,-1000.0,0.00013989,2]
[333467427,1722161459914,-1000.0,0.00013989,2]
[333467428,1722161459924,-154.74174832,0.00014,2]
[333467429,1722161460004,-1000.0,0.00014006,2]
[333467430,1722161460014,-155.0,0.0001401,2]
[333467431,1722161460025,-1000.0,0.00014011,2]
[333467432,1722161460035,-1000.0,0.0001402,2]
[333467433,1722161460045,-1000.0,0.00014028,2]
[333467434,1722161460055,-300.0,0.00014033,2]
[333467435,1722161460065,-1000.0,0.00014034,2]
[333467436,1722161460075,-1000.0,0.00014034,2]
[333467437,1722161460084,-1000.0,0.00014038,2]
[333467438,1722161460093,-1000.0,0.00014041,2]
[333467439,1722161460102,-1000.0,0.00014047,2]
[333467440,1722161460111,-1000.0,0.00014048,2]
[333467441,1722161460121,-1000.0,0.00014055,2]
[333467442,1722161460130,-300.0,0.00014055,2]
[333467443,1722161460139,-268.724,0.00014064,2]
[333467444,1722161460148,-150.0,0.00014064,2]
[333467445,1722161460158,-642.326,0.00014064,2]
[333467446,1722161460167,-1000.0,0.0001407,2]
[333467447,1722161460176,-1000.0,0.00014073,2]
[333467448,1722161460186,-1000.0,0.00014078,2]
[333467449,1722161460195,-1000.0,0.00014084,2]
[333467450,1722161460204,-1000.0,0.00014088,2]
[333467451,1722161460214,-1000.0,0.00014089,2]
[333467452,1722161460224,-1000.0,0.00014097,2]
[333467453,1722161460234,-600.0,0.00014102,2]
[333467454,1722161460244,-1000.0,0.00014103,2]
[333467455,1722161460253,-1000.0,0.0001411,2]
[333467456,1722161460263,-1000.0,0.00014127,2]
[333467457,1722161460272,-1000.0,0.00014131,2]
[333467458,1722161460282,-1000.0,0.00014133,2]
[333467459,1722161460292,-1000.0,0.00014137,2]
[333467460,1722161460301,-1000.0,0.00014139,2]
[333467461,1722161460311,-1000.0,0.00014139,2]
[333467462,1722161460320,-1000.0,0.00014141,2]
[333467463,1722161460330,-300.29093851,0.00014167,2]
[333467464,1722161460339,-1000.0,0.00014173,2]
[333467465,1722161460350,-1000.0,0.00014184,2]
[333467466,1722161460359,-150.0,0.000142,30]
[333467467,1722161460369,-522.32859241,0.00014246,3]
[333467468,1722161460378,-500.37493868,0.00014246,2]
[333467469,1722161460387,-500.0,0.00014246,2]
[333467470,1722161460397,-504.77150617,0.00014246,2]
[333467471,1722161460406,-500.0,0.00014246,2]
[333467472,1722161460416,-504.17779074,0.00014246,2]
[333467473,1722161460426,-500.0,0.00014246,2]
[333467474,1722161460436,-500.0,0.00014246,2]
[333467475,1722161460445,-500.0,0.00014246,2]
[333467476,1722161460456,-26.99628011,0.00014246,2]
[333467477,1722161460645,-478.86377266,0.00014246,2]
[333467478,1722161460655,-500.0,0.00014246,2]
[333467479,1722161460664,-500.0,0.00014246,2]
[333467480,1722161460673,-500.0,0.00014246,2]
[333467481,1722161460683,-500.0,0.00014246,2]
[333467482,1722161460692,-500.0,0.00014246,2]
[333467483,1722161460701,-500.0,0.00014246,2]
[333467484,1722161460711,-500.0,0.00014246,2]
[333467485,1722161460721,-246.51782568,0.00014246,2]
[333467489,1722162555111,-154.66746495,0.00011663,2]
[333467490,1722162560126,-11.99920105,0.00011663,2]
[333467491,1722162560148,-188.00079895,0.00011736,2]
[333467492,1722162565104,-111.99920105,0.00011736,2]
[333467493,1722162565125,-300.0,0.00011736,2]
[333467494,1722162565148,-13371.43513276,0.00011737,2]
[333467498,1722162572115,-11528.56486724,0.00011737,2]
[333467499,1722162572137,-166.666666,0.00011981,2]
[333467500,1722162572162,-161.279717,0.00012189,2]
[333467501,1722162572184,-166.666666,0.00012299,2]
[333467502,1722162572208,-161.279717,0.00012316,2]
[333467503,1722162572229,-273.36061978,0.00012369,2]
[333467571,1722162634420,-540.53450372,9.999e-05,2]
[333467573,1722162634430,-163.787465,0.00011976,2]
[333467575,1722162634440,-163.787465,0.00012302,2]
[333467577,1722162634451,-722.56200961,0.00012369,2]
[333467765,1722162638667,-8139.10792967,0.00012369,2]
[333467808,1722162640210,-10261.4117607,0.00012369,2]
[333467809,1722162640222,-247.19027466,0.00012369,2]
[333467810,1722162640232,-82.56155804,0.00012369,2]
[333467811,1722162640244,-2932.76698149,0.00012369,2]
[333467812,1722162640253,-195.22575355,0.00012369,2]
[333467813,1722162640263,-161.279717,0.00012443,2]
[333467814,1722162640273,-161.279717,0.0001257,2]
[333467815,1722162640282,-163.787465,0.00012629,2]
[333467816,1722162640292,-161.279717,0.00012697,2]
[333467817,1722162640301,-161.279717,0.00012824,2]
[333467818,1722162640311,-163.787465,0.00012955,2]
[333467819,1722162640322,-163.787465,0.00013282,2]
[333467820,1722162640332,-166.789494,0.00013425,2]
[333467821,1722162640343,-1728.56767479,0.00013469,2]
[333467822,1722162640354,-300.0,0.00013487,2]
[333467823,1722162640364,-6762.87398061,0.00013488,2]
[333467824,1722162640373,-6762.87398061,0.00013516,2]
[333467825,1722162640383,-6762.87398061,0.00013543,2]
[333467826,1722162640392,-28464.43690347,0.00013569,2]
[333467827,1722162640401,-6762.87398061,0.00013571,2]
[333467828,1722162640411,-21186.34865216,0.00013578,2]
[333467856,1722162643065,-764.76670726,0.00013578,2]